fUST/lending_fUST_20251023
["ID","MTS","AMOUNT","RATE_DAILY","PERIOD"]
[392135424,1761202246642,-151.0,0.0003,30]
[392135425,1761202246651,-151.0,0.0003,30]
[392135426,1761202246660,-151.0,0.0003,30]
[392135427,1761202246670,-151.0,0.0003,30]
[392135428,1761202246679,-151.0,0.0003,30]
[392135429,1761202246689,-151.0,0.0003,30]
[392135430,1761202246699,-151.0,0.0003,30]
[392135431,1761202246709,-1000.0,0.0003,4]
[392135432,1761202246720,-151.0,0.0003,30]
[392135433,1761202246732,-151.0,0.0003,30]
[392135434,1761202246742,-151.0,0.0003,30]
[392135435,1761202246751,-260.115794,0.0003,30]
[392135436,1761202246761,-1000.0,0.00030121,5]
[392135437,1761202246770,-1000.0,0.00030136,30]
[392135438,1761202246781,-15871.37146933,0.00030156,2]
[392135439,1761202246791,-1000.0,0.0003041,31]
[392135440,1761202246801,-260.0,0.0003047,2]
[392135441,1761202246810,-200.0,0.0003051,7]
[392135442,1761202246819,-1121.32423328,0.00030521,5]
[392135443,1761202246828,-1005.32351858,0.00030521,5]
[392135444,1761202246838,-1001.24540942,0.00030521,5]
[392135445,1761202246849,-501.02833657,0.00030521,5]
[392135446,1761202246859,-1000.0,0.00030521,5]
[392135447,1761202246870,-1000.0,0.00030521,5]
[392135448,1761202246880,-1025.74586575,0.00030521,5]
[392135449,1761202246890,-160.0,0.0003066,2]
[392135450,1761202246903,-403.24192968,0.00030661,2]
[392135451,1761202246913,-160.0,0.00030661,2]
[392135452,1761202246922,-349.88469963,0.00030668,5]
[392135453,1761202246932,-1000.0,0.00030684,32]
[392135454,1761202246942,-160.0,0.0003071,2]
[392135455,1761202246951,-1246.06,0.000309,3]
[392135456,1761202246967,-623.04,0.000309,3]
[392135457,1761202246976,-311.52,0.000309,3]
[392135458,1761202246986,-200.0,0.0003091,7]
[392135459,1761202246995,-1000.0,0.00030958,33]
[392135460,1761202247005,-6914.0,0.00030959,2]
[392135461,1761202247015,-3739.03,0.00031,7]
[392135462,1761202247025,-540.12,0.00031,7]
[392135463,1761202247035,-200.0,0.00031,7]
[392135464,1761202247045,-360.0,0.00031018,2]
[392135465,1761202247055,-517.18018523,0.00031068,5]
[392135466,1761202247065,-508.41123959,0.00031068,5]
[392135467,1761202247075,-1000.0,0.00031232,34]
[392135468,1761202247085,-420.0,0.00031285,2]
[392135469,1761202247096,-303.0,0.00031285,3]
[392135470,1761202247106,-341.0,0.00031285,3]
[392135471,1761202247116,-267.03336091,0.00031376,2]
[392135472,1761202247126,-157.34573934,0.0003139,10]
[392135473,1761202247135,-1000.0,0.00031506,35]
[392135474,1761202247146,-200.0,0.0003151,7]
[392135475,1761202247156,-300.0,0.00031517,30]
[392135476,1761202247165,-300.0,0.00031517,30]
[392135477,1761202247175,-460.0,0.00031566,2]
[392135478,1761202247185,-168.0,0.00031641,2]
[392135479,1761202247195,-200.0,0.0003171,7]
[392135480,1761202247205,-1000.0,0.0003178,36]
[392135481,1761202247215,-230.61,0.0003181,7]
[392135482,1761202247224,-179.92802879,0.00031909,8]
[392135483,1761202247234,-200.0,0.0003191,7]
[392135485,1761202247244,-60175.819577,0.00032,120]
[392135487,1761202247254,-1954.95,0.00032,2]
[392135490,1761202247264,-1000.0,0.00032054,37]
[392135492,1761202247273,-200.0,0.000321,7]
[392135493,1761202247283,-1000.0,0.00032328,38]
[392135494,1761202247293,-200.0,0.0003251,7]
[392135495,1761202247303,-1000.0,0.00032602,39]
[392135496,1761202247313,-983.0,0.00032766,2]
[392135497,1761202247325,-632.0,0.00032766,2]
[392135498,1761202247336,-411.0,0.00032766,2]
[392135499,1761202247347,-1000.0,0.00032876,40]
[392135500,1761202247358,-2708.55,0.00032876,120]
[392135501,1761202247369,-500.0,0.00032877,30]
[392135502,1761202247379,-200.0,0.0003291,7]
[392135503,1761202247389,-403.24192968,0.00033,120]
[392135504,1761202247399,-200.0,0.000331,7]
[392135505,1761202247409,-1000.0,0.0003315,41]
[392135506,1761202247418,-160.979512,0.00033165,2]
[392135507,1761202247428,-164.21812205,0.000332,117]
[392135508,1761202247437,-298.24505244,0.00033376,120]
[392135509,1761202247447,-646.84263378,0.00033418,2]
[392135510,1761202247457,-1000.0,0.00033424,42]
[392135511,1761202247468,-500.0,0.00033425,30]
[392135512,1761202247478,-2000.0,0.00033691,15]
[392135513,1761202247487,-1000.0,0.00033698,43]
[392135514,1761202247497,-2708.55,0.00033698,120]
[392135515,1761202247603,-1954.95,0.000337,14]
[392135516,1761202247613,-587.0,0.00033753,2]
[392135517,1761202247623,-185.40002491,0.00033781,30]
[392135518,1761202247633,-800.0,0.00033823,7]
[392135519,1761202247643,-1049.9922983,0.00033972,44]
[392135520,1761202247652,-500.0,0.00033973,30]
[392135521,1761202247662,-1000.0,0.00034101,7]
[392135522,1761202247671,-185.40002491,0.00034219,30]
[392135523,1761202247681,-1000.0,0.00034375,7]
[392135524,1761202247690,-668001.74879869,0.00034452,2]
[392135525,1761202247700,-151.0,0.00034452,30]
[392135526,1761202247709,-500.0,0.0003446,10]
[392135527,1761202247718,-501.88618938,0.00034473,5]
[392135528,1761202247728,-500.0,0.00034473,2]
[392135529,1761202247738,-504.98604001,0.00034473,5]
[392135530,1761202247747,-500.0,0.00034473,5]
[392135531,1761202247756,-500.0,0.00034473,5]
[392135532,1761202247766,-500.84635423,0.00034473,5]
[392135533,1761202247776,-583.64590269,0.00034473,5]
[392135534,1761202247785,-500.0,0.00034473,5]
[392135535,1761202247795,-500.0,0.00034473,5]
[392135536,1761202247806,-504.02356819,0.00034473,5]
[392135537,1761202247816,-502.38585404,0.00034473,5]
[392135538,1761202247825,-500.0,0.00034473,5]
[392135539,1761202247835,-412.56751212,0.00034473,5]
[392135540,1761202247845,-160.20667551,0.00034473,5]
[392135541,1761202247855,-158.60558254,0.00034473,5]
[392135542,1761202247864,-283.94306526,0.00034473,5]
[392135543,1761202247874,-500.0,0.00034473,5]
[392135544,1761202247884,-500.0,0.00034473,5]
[392135545,1761202247894,-500.0,0.00034473,5]
[392135546,1761202247904,-503.06190581,0.00034473,5]
[392135547,1761202247913,-500.0,0.00034473,5]
[392135548,1761202247923,-500.0,0.00034473,5]
[392135549,1761202247933,-204.40068777,0.00034473,5]
[392135550,1761202247943,-505.02873053,0.00034473,5]
[392135551,1761202247952,-471.30914969,0.00034473,5]
[392135552,1761202247962,-500.0,0.00034473,5]
[392135553,1761202247972,-500.0,0.00034473,5]
[392135554,1761202247982,-610.90414308,0.00034473,5]
[392135555,1761202247991,-184.75577409,0.00034473,5]
[392135556,1761202248001,-2708.55,0.0003452,120]
[392135557,1761202248011,-500.0,0.00034521,30]
[392135558,1761202248020,-24978.05140769,0.00034528,15]
[392135559,1761202248030,-800.0,0.00034645,7]
[392135560,1761202248040,-151.0,0.00034649,30]
[392135561,1761202248050,-151.0,0.00034649,30]
[392135562,1761202248060,-151.0,0.00034649,30]
[392135563,1761202248070,-282.0,0.00034649,30]
[392135564,1761202248079,-1000.0,0.00034649,7]
[392135565,1761202248089,-185.40002491,0.00034658,30]
[392135566,1761202248098,-3019.55,0.000347,30]
[392135567,1761202248108,-175.556451,0.0003479,60]
[392135568,1761202248118,-1000.0,0.00034923,7]
[392135569,1761202248129,-160.0,0.00034959,5]
[392135570,1761202248138,-2028.67,0.00035,35]
[392135571,1761202248148,-7888.72929,0.00035,120]
[392135572,1761202248158,-1700.0,0.00035,30]
[392135573,1761202248167,-18314.29799141,0.00035,30]
[392135574,1761202248177,-256.26,0.00035,3]
[392135575,1761202248186,-20948.49071344,0.00035,30]
[392135576,1761202248196,-1000.0,0.00035021,2]
[392135577,1761202248205,-505.29299139,0.00035021,5]
[392135578,1761202248215,-410.56043603,0.00035021,5]
[392135579,1761202248225,-509.54798201,0.00035021,5]
[392135580,1761202248235,-503.02079103,0.00035021,5]
[392135581,1761202248245,-504.07813825,0.00035021,5]
[392135582,1761202248255,-615.09754353,0.00035021,5]
[392135583,1761202248266,-1002.71978889,0.00035021,5]
[392135584,1761202248275,-1000.0,0.00035021,5]
[392135585,1761202248286,-1001.85569345,0.00035021,5]
[392135586,1761202248296,-1001.20154228,0.00035021,5]
[392135587,1761202248306,-222.23118464,0.00035021,5]
[392135588,1761202248315,-1000.0,0.00035021,5]
[392135589,1761202248328,-500.0,0.00035068,30]
[392135590,1761202248338,-1000.0,0.00035197,7]
[392135591,1761202248347,-540.12,0.000353,7]
[392135592,1761202248357,-800.0,0.00035303,2]
[392135593,1761202248368,-2708.55,0.00035342,120]
[392135594,1761202248378,-329.45674398,0.00035376,120]
[392135595,1761202248388,-25013.11638845,0.000354,60]
[392135596,1761202248400,-2109.68,0.000354,30]
[392135597,1761202248410,-152.694936,0.000354,23]
[392135598,1761202248420,-10000.0,0.0003544,30]
[392135599,1761202248429,-10000.0,0.0003544,30]
[392135600,1761202248438,-10000.0,0.0003544,30]
[392135601,1761202248447,-10000.0,0.0003544,30]
[392135602,1761202248456,-10000.0,0.0003544,30]
[392135603,1761202248465,-478.0,0.00035441,120]
[392135604,1761202248475,-400.0,0.00035441,31]
[392135605,1761202248484,-151.0,0.00035441,30]
[392135606,1761202248494,-167.82,0.00035441,30]
[392135607,1761202248503,-26645.71123491,0.00035442,30]
[392135608,1761202248512,-1476.0,0.00035442,30]
[392135609,1761202248521,-151.0,0.00035442,30]
[392135610,1761202248530,-500.0,0.00035443,30]
[392135611,1761202248539,-5365.7,0.00035444,30]
[392135612,1761202248548,-5365.88,0.00035444,30]
[392135613,1761202248557,-257.28989663,0.00035445,30]
[392135614,1761202248566,-151.0,0.00035447,30]
[392135615,1761202248575,-151.0,0.00035447,30]
[392135616,1761202248584,-151.0,0.00035447,30]
[392135617,1761202248594,-9246.1,0.00035447,30]
[392135618,1761202248603,-9246.1,0.00035447,30]
[392135619,1761202248613,-1225.0,0.00035451,30]
[392135620,1761202248622,-5045.892937,0.00035453,30]
[392135621,1761202248631,-503.46076496,0.00035453,13]
[392135622,1761202248641,-501.43634686,0.00035453,13]
[392135623,1761202248650,-10000.0,0.00035454,30]
[392135624,1761202248660,-10000.0,0.00035454,30]
[392135625,1761202248676,-500.0,0.0003546,10]
[392135626,1761202248688,-356.51786613,0.0003546,10]
[392135627,1761202248698,-508.26533141,0.0003546,10]
[392135628,1761202248708,-800.0,0.00035467,7]
[392135629,1761202248718,-566.0,0.00035468,30]
[392135630,1761202248728,-8035.0,0.00035468,30]
[392135631,1761202248738,-1000.0,0.00035471,7]
[392135632,1761202248748,-209740.34436227,0.00035471,20]
[392135633,1761202248758,-935.77559322,0.00035471,2]
[392135634,1761202248767,-872030.56380598,0.00035471,14]
[392135635,1761202248777,-404.213977,0.00035471,10]
[392135636,1761202248786,-500.0,0.00035473,5]
[392135637,1761202248796,-501.80604621,0.00035473,5]
[392135638,1761202248805,-501.17862466,0.00035473,5]
[392135639,1761202248814,-150.0,0.00035473,5]
[392135640,1761202248823,-500.0,0.00035473,5]
[392135641,1761202248833,-150.0,0.00035473,5]
[392135642,1761202248843,-500.96635147,0.00035473,5]
[392135643,1761202248852,-324.98956156,0.000355,2]
[392135644,1761202248862,-1954.95,0.000355,14]
[392135645,1761202248872,-175.556451,0.000355,30]
[392135646,1761202248881,-502.44266011,0.00035568,2]
[392135647,1761202248891,-516.60378376,0.00035568,5]
[392135648,1761202248901,-1500.0,0.00035568,5]
[392135649,1761202248911,-175.556451,0.0003558,15]
[392135650,1761202248920,-175.556451,0.0003558,2]
[392135651,1761202248930,-500.0,0.00035616,30]
[392135652,1761202248939,-168.0,0.00035663,2]
[392135653,1761202248949,-1000.0,0.00035745,7]
[392135654,1761202248959,-470.423,0.00035766,2]
[392135655,1761202248969,-411.0,0.00035766,2]
[392135656,1761202248978,-1000.0,0.000358,60]
[392135657,1761202248989,-3739.03,0.000358,14]
[392135658,1761202248999,-320.61704169,0.00036,2]
[392135659,1761202249009,-176.21289765,0.00036,30]
[392135660,1761202249019,-11283.724805,0.00036011,2]
[392135661,1761202249028,-1000.0,0.00036019,7]
[392135662,1761202249039,-198.89070084,0.00036021,5]
[392135663,1761202249048,-150.99798851,0.00036021,5]
[392135664,1761202249058,-1000.75991956,0.00036021,5]
[392135665,1761202249068,-250.0,0.00036021,5]
[392135666,1761202249077,-961.27968348,0.00036116,5]
[392135667,1761202249086,-2708.55,0.00036164,120]
[392135668,1761202249096,-237.39,0.00036164,30]
[392135669,1761202249106,-203.47398103,0.0003621,2]
[392135670,1761202249115,-264.66288695,0.0003624,2]
[392135671,1761202249125,-800.0,0.00036289,7]
[392135672,1761202249137,-1000.0,0.00036293,7]
[392135673,1761202249148,-200.0,0.00036419,120]
[392135674,1761202249157,-1000.0,0.00036567,7]
[392135675,1761202249167,-350.0,0.00036568,5]
[392135676,1761202249176,-3538.23472203,0.00036789,60]
[392135677,1761202249185,-540.12,0.000368,7]
[392135678,1761202249195,-157.782621,0.000368,60]
[392135679,1761202249204,-1000.0,0.00036841,7]
[392135680,1761202249214,-200.0,0.00036926,120]
[392135681,1761202249223,-2708.55,0.00036986,120]
[392135682,1761202249233,-646.84263378,0.00037,120]
[392135683,1761202249242,-800.0,0.00037111,7]
[392135684,1761202249251,-1000.0,0.00037115,7]
[392135685,1761202249261,-450.0,0.00037116,5]
[392135686,1761202249270,-157.782621,0.00037123,2]
[392135687,1761202249280,-157.782621,0.0003715,15]
[392135688,1761202249289,-1954.95,0.000372,14]
[392135689,1761202249299,-500.856,0.00037268,7]
[392135690,1761202249308,-200.0,0.00037312,120]
[392135691,1761202249318,-360.66843551,0.00037376,120]
[392135692,1761202249332,-1000.0,0.00037389,7]
[392135693,1761202249342,-3739.03,0.000374,14]
[392135694,1761202249352,-1000.0,0.00037663,7]
[392135695,1761202249363,-438.44359769,0.00037664,5]
[392135696,1761202249373,-1014.79278425,0.000378,2]
[392135697,1761202249382,-2708.55,0.00037808,120]
[392135698,1761202249394,-800.0,0.00037933,7]
[392135699,1761202249407,-1000.0,0.00037937,7]
[392135700,1761202249418,-1066.20096067,0.00037956,6]
[392135701,1761202249428,-6267.01729435,0.00038,60]
[392135702,1761202249436,-201.0,0.000381,48]
[392135703,1761202249446,-1000.0,0.00038211,7]
[392135704,1761202249455,-500.0,0.00038293,30]
[392135705,1761202249465,-540.0,0.00038356,7]
[392135706,1761202249575,-500.0,0.00038356,7]
[392135707,1761202249585,-649.12926927,0.00038356,7]
[392135708,1761202249595,-263.20782587,0.00038356,7]
[392135709,1761202249604,-308.99975594,0.00038356,7]
[392135710,1761202249614,-483.44982326,0.00038356,7]
[392135711,1761202249623,-500.0,0.00038356,7]
[392135712,1761202249633,-344.54133922,0.00038356,7]
[392135713,1761202249643,-491.75596219,0.00038356,7]
[392135714,1761202249652,-498.14983344,0.00038356,7]
[392135715,1761202249662,-236.52403911,0.00038356,7]
[392135716,1761202249671,-472.71385971,0.00038356,7]
[392135717,1761202249680,-523.20236709,0.00038356,7]
[392135718,1761202249690,-292.06942064,0.00038356,7]
[392135719,1761202249699,-538.12234175,0.00038356,7]
[392135720,1761202249708,-357.24095171,0.00038356,7]
[392135721,1761202249717,-374.12414719,0.00038356,7]
[392135722,1761202249727,-201.10195276,0.00038356,7]
[392135723,1761202249736,-303.2291673,0.00038356,7]
[392135724,1761202249745,-283.75821538,0.00038356,7]
[392135725,1761202249755,-459.29881964,0.00038356,7]
[392135726,1761202249764,-463.14222455,0.00038356,7]
[392135727,1761202249773,-275.6164345,0.00038356,7]
[392135728,1761202249783,-491.20101812,0.00038356,7]
[392135729,1761202249792,-166.12424517,0.00038356,7]
[392135730,1761202249802,-296.65001639,0.00038356,7]
[392135731,1761202249811,-346.97136212,0.00038356,7]
[392135732,1761202249821,-389.91728384,0.00038356,7]
[392135733,1761202249830,-300.90086506,0.00038356,7]
[392135734,1761202249839,-1000.0,0.00038356,2]
[392135735,1761202249850,-405.21997993,0.00038356,7]
[392135736,1761202249859,-278.91161189,0.00038356,7]
[392135737,1761202249868,-166.09559028,0.00038356,7]
[392135738,1761202249877,-500.0,0.00038356,7]
[392135739,1761202249887,-206.47765667,0.00038356,7]
[392135740,1761202249896,-223.17636112,0.00038356,7]
[392135741,1761202249906,-288.76543623,0.00038356,7]
[392135742,1761202249916,-534.99784035,0.00038356,7]
[392135743,1761202249926,-512.21612626,0.00038356,7]
[392135744,1761202249935,-171.41098315,0.00038356,7]
[392135745,1761202249944,-500.0,0.00038356,7]
[392135746,1761202249954,-500.0,0.00038356,7]
[392135747,1761202249963,-267.36490303,0.00038356,7]
[392135748,1761202249974,-500.0,0.00038356,7]
[392135749,1761202249984,-500.0,0.00038356,7]
[392135750,1761202249994,-215.55798732,0.00038356,7]
[392135751,1761202250004,-193.73147073,0.00038356,7]
[392135752,1761202250013,-363.2845801,0.00038356,7]
[392135753,1761202250023,-302.62615646,0.00038356,7]
[392135754,1761202250033,-515.62474848,0.00038356,7]
[392135755,1761202250042,-500.0,0.00038356,7]
[392135756,1761202250051,-500.0,0.00038356,7]
[392135757,1761202250060,-264.65231134,0.00038356,7]
[392135758,1761202250070,-500.0,0.00038356,2]
[392135759,1761202250079,-242.09258544,0.00038356,7]
[392135760,1761202250088,-156.72257369,0.00038356,7]
[392135761,1761202250099,-172.21254403,0.00038356,7]
[392135762,1761202250108,-293.13333697,0.00038356,7]
[392135763,1761202250117,-228.51390815,0.00038356,7]
[392135764,1761202250126,-373.87734865,0.00038356,7]
[392135765,1761202250136,-296.84448881,0.00038356,7]
[392135766,1761202250144,-500.0,0.00038356,7]
[392135767,1761202250153,-419.80087638,0.00038356,7]
[392135768,1761202250163,-328.77030659,0.00038356,7]
[392135769,1761202250172,-189.54580046,0.00038356,7]
[392135770,1761202250181,-346.87508692,0.00038356,7]
[392135771,1761202250190,-500.0,0.00038356,7]
[392135772,1761202250200,-500.0,0.00038356,7]
[392135773,1761202250209,-426.92147889,0.00038356,7]
[392135774,1761202250219,-164.03476206,0.00038356,7]
[392135775,1761202250228,-157.76080602,0.00038356,7]
[392135776,1761202250237,-178.89294314,0.00038356,7]
[392135777,1761202250246,-344.82166748,0.00038356,7]
[392135778,1761202250256,-198.93867848,0.00038356,7]
[392135779,1761202250265,-207.15638053,0.00038356,7]
[392135780,1761202250274,-590.23366302,0.00038356,7]
[392135781,1761202250284,-200.0,0.00038356,7]
[392135782,1761202250294,-502.33171303,0.00038356,7]
[392135783,1761202250304,-170.79415915,0.00038356,7]
[392135784,1761202250313,-189.06439731,0.00038356,7]
[392135785,1761202250328,-382.46503971,0.00038356,7]
[392135786,1761202250337,-242.40715648,0.00038356,7]
[392135787,1761202250347,-192.49142544,0.00038356,7]
[392135788,1761202250358,-608.76656185,0.00038356,7]
[392135789,1761202250369,-350.31884709,0.00038356,7]
[392135790,1761202250379,-500.0,0.00038356,7]
[392135791,1761202250388,-299.05305365,0.00038356,7]
[392135792,1761202250400,-202.11256791,0.00038356,7]
[392135793,1761202250410,-365.94513817,0.00038356,7]
[392135794,1761202250420,-368.67355314,0.00038356,7]
[392135795,1761202250430,-314.47613056,0.00038356,7]
[392135796,1761202250440,-244.17559548,0.00038356,7]
[392135797,1761202250450,-427.75274079,0.00038356,7]
[392135798,1761202250460,-350.95563518,0.00038356,7]
[392135799,1761202250470,-173.98682524,0.00038356,7]
[392135800,1761202250481,-611.86155928,0.00038356,7]
[392135801,1761202250491,-193.4130692,0.00038356,7]
[392135802,1761202250501,-500.0,0.00038356,7]
[392135803,1761202250510,-494.16143664,0.00038356,7]
[392135804,1761202250520,-500.0,0.00038356,7]
[392135805,1761202250531,-215.10725429,0.00038356,7]
[392135806,1761202250540,-528.74377795,0.00038356,7]
[392135807,1761202250550,-425.98778916,0.00038356,7]
[392135808,1761202250560,-205.17799134,0.00038356,7]
[392135809,1761202250570,-205.31591297,0.00038356,7]
[392135810,1761202250580,-500.0,0.00038356,7]
[392135811,1761202250590,-362.15449788,0.00038356,7]
[392135812,1761202250600,-1000.0,0.00038356,2]
[392135813,1761202250610,-399.46287936,0.00038356,7]
[392135814,1761202250620,-403.03707011,0.00038356,7]
[392135815,1761202250630,-208.97167363,0.00038356,7]
[392135816,1761202250640,-162.08594437,0.00038356,7]
[392135817,1761202250650,-168.7046913,0.00038356,7]
[392135818,1761202250660,-500.0,0.00038356,7]
[392135819,1761202250670,-234.76185873,0.00038356,7]
[392135820,1761202250680,-336.19375296,0.00038356,7]
[392135821,1761202250689,-201.71557885,0.00038356,7]
[392135822,1761202250699,-500.0,0.00038356,7]
[392135823,1761202250709,-354.19522776,0.00038356,7]
[392135824,1761202250719,-329.69256206,0.00038356,7]
[392135825,1761202250728,-423.02062882,0.00038356,7]
[392135826,1761202250740,-405.39742748,0.00038356,7]
[392135827,1761202250759,-429.83767824,0.00038356,7]
[392135828,1761202250768,-316.37492512,0.00038356,7]
[392135829,1761202250778,-346.79827955,0.00038356,7]
[392135830,1761202250789,-400.51769241,0.00038356,7]
[392135831,1761202250798,-161.54784441,0.00038356,7]
[392135832,1761202250808,-163.94211196,0.00038356,7]
[392135833,1761202250818,-500.0,0.00038356,5]
[392135834,1761202250828,-413.48241517,0.00038356,7]
[392135835,1761202250837,-500.0,0.00038356,7]
[392135836,1761202250847,-163.45584017,0.00038356,7]
[392135837,1761202250857,-500.0,0.00038356,7]
[392135838,1761202250866,-285.82372741,0.00038356,7]
[392135839,1761202250876,-363.09667508,0.00038356,7]
[392135840,1761202250885,-500.0,0.00038356,7]
[392135841,1761202250895,-500.0,0.00038356,7]
[392135842,1761202250904,-2627.49,0.00038356,2]
[392135843,1761202250913,-500.0,0.00038356,7]
[392135844,1761202250923,-500.0,0.00038356,7]
[392135845,1761202250932,-261.56696751,0.00038356,7]
[392135846,1761202250941,-754.29,0.00038356,7]
[392135847,1761202250950,-450.27371728,0.00038356,7]
[392135848,1761202250960,-625.65,0.00038356,7]
[392135849,1761202250969,-500.0,0.00038356,7]
[392135850,1761202250978,-3507.78,0.00038356,7]
[392135851,1761202250989,-500.0,0.00038356,7]
[392135852,1761202250999,-500.0,0.00038356,7]
[392135853,1761202251008,-220.22271114,0.00038356,7]
[392135854,1761202251019,-500.0,0.00038356,7]
[392135855,1761202251027,-500.0,0.00038356,7]
[392135856,1761202251036,-500.0,0.00038356,7]
[392135857,1761202251045,-500.0,0.00038356,7]
[392135858,1761202251054,-555.94925081,0.00038356,7]
[392135859,1761202251064,-198.39733123,0.00038356,7]
[392135860,1761202251073,-275.16811477,0.00038356,7]
[392135861,1761202251082,-1000.0,0.00038356,5]
[392135862,1761202251091,-539.65283116,0.00038356,7]
[392135863,1761202251102,-187.65172568,0.00038356,7]
[392135864,1761202251111,-359.8015276,0.00038356,7]
[392135865,1761202251121,-500.0,0.00038356,7]
[392135866,1761202251130,-533.65,0.00038356,7]
[392135867,1761202251139,-221.18312973,0.00038356,7]
[392135868,1761202251149,-500.0,0.00038356,7]
[392135869,1761202251158,-500.0,0.00038356,7]
[392135870,1761202251168,-266.52377238,0.00038356,7]
[392135871,1761202251178,-2253.85,0.00038356,7]
[392135872,1761202251188,-5147.27,0.00038356,7]
[392135873,1761202251199,-193.48537268,0.00038356,7]
[392135874,1761202251208,-226.45074403,0.00038356,7]
[392135875,1761202251217,-415.0489827,0.00038356,7]
[392135876,1761202251226,-500.0,0.00038356,7]
[392135877,1761202251236,-500.0,0.00038356,7]
[392135878,1761202251245,-500.0,0.00038356,7]
[392135879,1761202251255,-254.31008209,0.00038356,7]
[392135880,1761202251265,-273.70658306,0.00038356,7]
[392135881,1761202251275,-425.76911303,0.00038356,7]
[392135882,1761202251360,-253.48664028,0.00038356,7]
[392135883,1761202251373,-258.56635398,0.00038356,7]
[392135884,1761202251383,-205.96136341,0.00038356,7]
[392135885,1761202251393,-379.09268343,0.00038356,7]
[392135886,1761202251404,-457.92640577,0.00038356,7]
[392135887,1761202251413,-380.60813979,0.00038356,7]
[392135888,1761202251423,-451.57399885,0.00038356,7]
[392135889,1761202251432,-384.30315484,0.00038356,7]
[392135890,1761202251442,-500.0,0.00038356,7]
[392135891,1761202251451,-165.99026306,0.00038356,7]
[392135892,1761202251461,-252.26058557,0.00038356,7]
[392135893,1761202251472,-196.44557916,0.00038356,7]
[392135894,1761202251482,-354.54738398,0.00038356,7]
[392135895,1761202251491,-410.3766448,0.00038356,7]
[392135896,1761202251501,-621.91413717,0.00038356,7]
[392135897,1761202251511,-500.0,0.00038356,7]
[392135898,1761202251520,-240.50944703,0.00038356,7]
[392135899,1761202251530,-536.74151366,0.00038356,7]
[392135900,1761202251540,-641.75,0.00038356,2]
[392135901,1761202251550,-419.51432548,0.00038356,7]
[392135902,1761202251560,-368.84712067,0.00038356,7]
[392135903,1761202251569,-416.23274733,0.00038356,7]
[392135904,1761202251579,-414.03249022,0.00038356,7]
[392135905,1761202251588,-323.98471676,0.00038356,7]
[392135906,1761202251599,-439.75141626,0.00038356,7]
[392135907,1761202251608,-500.12534399,0.00038356,7]
[392135908,1761202251618,-394.933121,0.00038356,7]
[392135909,1761202251628,-387.22821303,0.00038356,7]
[392135910,1761202251638,-500.0,0.00038356,7]
[392135911,1761202251648,-500.0,0.00038356,7]
[392135912,1761202251658,-462.351819,0.00038356,7]
[392135913,1761202251667,-500.0,0.00038356,7]
[392135914,1761202251676,-442.79808493,0.00038356,7]
[392135915,1761202251685,-1000.0,0.00038356,2]
[392135916,1761202251695,-500.0,0.00038356,7]
[392135917,1761202251705,-403.22318429,0.00038356,7]
[392135918,1761202251715,-500.0,0.00038356,7]
[392135919,1761202251725,-263.55271441,0.00038356,7]
[392135920,1761202251734,-468.80987804,0.00038356,7]
[392135921,1761202251744,-500.0,0.00038356,7]
[392135922,1761202251754,-500.0,0.00038356,2]
[392135923,1761202251763,-500.0,0.00038356,7]
[392135924,1761202251773,-500.0,0.00038356,7]
[392135925,1761202251783,-500.0,0.00038356,7]
[392135926,1761202251792,-498.33297423,0.00038356,7]
[392135927,1761202251802,-1620.7,0.00038356,7]
[392135928,1761202251812,-378.78049528,0.00038356,7]